bitfinex-derivatives/quotes_ETHF0:USTF0_20250530
["timestamp","ask_amount","ask_price","bid_price","bid_amount"]
[1748637362679,0.77783,2570.8,2570.7,0.77784]
[1748637362880,0.77783,2570.8,2570.7,1.40064]
[1748637366778,0.77783,2570.8,2570.7,0.6228]
[1748637366980,0.77784,2570.7,2570.6,3.2078]
[1748637367181,1.99644,2570.7,2570.6,3.98567]
[1748637367984,1.99644,2570.7,2570.6,3.2078]
[1748637368185,1.99644,2570.7,2570.6,3.98567]
[1748637370187,0.77782,2570.8,2570.7,0.77784]
[1748637371382,0.00583669,2571.3,2570.7,5.0]
[1748637371585,0.77759,2571.6,2571.5,0.77757]
[1748637373191,0.77762,2571.5,2571.4,0.7776]
[1748637373384,0.77763,2571.4,2571.3,0.6472]
[1748637373589,0.77766,2571.3,2571.2,3.2078]
[1748637373787,1.8833,2571.3,2571.1,3.791]
[1748637373987,0.77772,2571.1,2571.0,1.4088]
[1748637374491,0.77775,2571.0,2570.9,7.77655]
[1748637374693,2.04475,2571.0,2570.9,7.77655]
[1748637375496,2.04475,2571.0,2570.9,3.2078]
[1748637376798,2.04475,2571.0,2570.9,3.98558]
[1748637384098,3.21141,2571.0,2570.6,3.98565]
[1748637384305,0.77783,2570.8,2570.7,0.77781]
[1748637384499,0.77783,2570.8,2570.7,2.04481]
[1748637384999,1.2881,2571.1,2570.7,1.267]
[1748637385206,0.77779,2571.0,2570.9,0.77775]
[1748637385700,0.77779,2571.0,2570.9,1.44115]
[1748637386606,0.77779,2571.0,2570.9,0.6634]
[1748637387805,0.77779,2571.0,2570.9,1.44118]
[1748637389306,0.77779,2571.0,2570.9,0.6634]
[1748637389501,0.77779,2571.0,2570.9,1.44118]
[1748637389703,0.77779,2571.0,2570.9,2.69948]
[1748637390808,0.77779,2571.0,2570.9,1.9217]
[1748637391402,0.77775,2571.1,2570.9,1.9217]
[1748637391608,0.77775,2571.1,2571.0,2.03605]
[1748637392508,0.6188,2571.4,2571.0,1.2583]
[1748637392701,0.77763,2571.5,2571.4,0.7776]
[1748637392906,0.77764,2571.5,2571.4,0.77761]
[1748637393600,0.77764,2571.5,2571.4,2.09121]
[1748637395013,2.04385,2571.7,2571.6,0.77757]
[1748637395214,0.77757,2571.6,2571.5,2.07087]
[1748637395909,0.77757,2571.6,2571.5,1.2933]
[1748637396608,0.77757,2571.6,2571.5,2.0709]
[1748637397109,0.77757,2571.6,2571.5,1.2933]
[1748637397509,0.77757,2571.6,2571.5,2.0709]
[1748637398509,0.97187,2571.6,2571.5,2.0709]
[1748637400712,0.97187,2571.6,2571.5,1.2933]
[1748637401307,0.1943,2571.6,2571.5,2.0709]
[1748637401509,0.1943,2571.6,2571.5,10.8609]
[1748637401810,0.00583669,2571.8,2571.7,0.77754]
[1748637402212,0.00583669,2571.8,2571.7,2.67534]
[1748637403205,0.77738,2572.3,2571.9,1.94367]
[1748637403510,0.77738,2572.3,2572.2,0.77737]
[1748637404306,0.77738,2572.3,2572.2,2.11137]
[1748637406218,1.39485669,2572.5,2572.4,0.77733]
[1748637406808,0.77736,2572.3,2572.2,1.334]
[1748637407004,0.77736,2572.3,2572.0,3.79583669]
[1748637407005,3.21284,2572.4,2572.0,0.00583669]
[1748637407211,0.77763,2571.4,2571.3,1.9441]
[1748637407508,0.77766,2571.3,2571.2,0.6464]
[1748637407708,0.77769,2571.2,2571.1,3.87179457]
[1748637408319,0.77775,2571.0,2570.9,0.00583669]
[1748637422516,0.97215,2571.1,2570.9,0.00583669]
[1748637422716,0.1944,2571.1,2571.0,0.77775]
[1748637422918,0.97212,2571.1,2571.0,2.04325]
[1748637431423,0.7776,2571.6,2571.5,0.77756]
[1748637431625,0.77759,2571.7,2571.6,0.77753]
[1748637431825,0.7776,2571.6,2571.5,0.77758]
[1748637432028,0.7776,2571.6,2571.5,2.11188]
[1748637433433,0.00583669,2571.8,2571.5,1.3343]
[1748637433729,0.78337669,2571.8,2571.7,0.77754]
[1748637434434,0.77757,2571.7,2571.6,0.77754]
[1748637440032,0.77757,2571.7,2571.5,1.3343]
[1748637440033,0.77757,2571.6,2571.5,2.11188]
[1748637441037,0.77757,2571.6,2571.5,1.3343]
[1748637441539,0.77757,2571.6,2571.5,2.1119]
[1748637443837,1.94964669,2571.8,2571.4,3.8675]
[1748637444043,3.88786,2571.6,2570.5,3.803]
[1748637444339,3.98555,2571.0,2570.5,3.803]
[1748637444535,3.98555,2571.0,2570.4,1.9526]
[1748637444735,8.98555,2571.0,2570.4,1.9526]
[1748637445057,0.7779,2570.5,2570.4,0.6341]
[1748637445339,0.77796,2570.3,2570.2,3.803]
[1748637446339,0.77796,2570.3,2570.2,4.58099]
[1748637449038,0.77796,2570.3,2570.2,3.803]
[1748637449238,0.77796,2570.3,2570.0,0.00583669]
[1748637449239,0.77802,2570.1,2570.0,0.00583669]
[1748637449840,2.00972,2570.1,2570.0,0.00583669]
[1748637451943,2.67162,2570.1,2570.0,0.00583669]
[1748637453745,0.77823,2569.4,2569.3,5.23476]
[1748637453944,0.77823,2569.4,2569.3,3.804]
[1748637454744,0.77826,2569.3,2569.2,0.77827]
[1748637455042,0.77826,2569.3,2569.2,4.58327]
[1748637456244,0.77826,2569.3,2569.2,5.81337]
[1748637458445,1.8846,2569.5,2569.2,5.0351]
[1748637458646,2.66284,2569.5,2569.4,0.77823]
[1748637459339,3.2078,2569.7,2569.2,5.0351]
[1748637459544,1.94513,2570.1,2569.8,0.77808]
[1748637459545,0.7781,2569.9,2569.8,0.77808]
[1748637459943,0.77814,2569.8,2569.7,0.77811]
[1748637461343,1.94476,2570.6,2569.7,5.0]
[1748637461649,0.6119,2570.9,2570.4,3.2078]
[1748637461839,2.5932,2570.9,2570.8,0.77781]
[1748637462040,1.9813,2570.9,2570.8,0.77781]
[1748637462241,3.812,2571.3,2571.0,0.77774]
[1748637462242,0.77771,2571.2,2571.0,0.77774]
[1748637462440,2.79418,2571.3,2571.1,0.7777]
[1748637462637,2.79418,2571.3,2570.8,1.35573669]
[1748637462850,2.0165,2571.3,2571.2,0.77769]
[1748637463038,1.3538,2571.3,2571.2,0.77769]
[1748637463349,2.13146,2571.3,2571.2,0.77769]
[1748637463554,1.3538,2571.3,2571.1,0.7777]
[1748637463745,1.3538,2571.3,2570.8,1.35573669]
[1748637463944,1.3538,2571.3,2570.8,2.13353669]
[1748637463945,0.77778,2570.9,2570.8,2.13353669]
[1748637464145,0.77777,2571.0,2570.9,0.77777]
[1748637464445,0.77774,2571.1,2571.0,0.77774]
[1748637464645,0.7777,2571.2,2571.1,0.7777]
[1748637465954,3.21363669,2571.4,2571.3,0.77766]
[1748637466253,0.00583669,2571.4,2571.3,0.77766]
[1748637468851,0.78346669,2571.4,2571.3,0.77766]
[1748637469050,0.00583669,2571.4,2571.3,0.77766]
[1748637469847,0.78346669,2571.4,2571.3,0.77766]
[1748637470053,0.00583669,2571.4,2571.3,0.77766]
[1748637475757,0.00583669,2571.4,2571.3,1.09537428]
[1748637475948,0.00583669,2571.4,2571.3,0.77766]
[1748637478471,0.00583669,2571.4,2571.3,2.04726]
[1748637479479,0.6483,2571.8,2571.7,0.77754]
[1748637479669,1.4402,2571.9,2571.8,0.77751]
[1748637479973,0.7775,2571.9,2571.8,0.77751]
[1748637481674,0.7775,2571.9,2571.6,4.4774]
[1748637481869,0.77754,2571.7,2571.6,5.25493]
[1748637482474,0.77753,2571.8,2571.7,0.77748]
[1748637485081,0.77754,2571.7,2571.6,5.25494]
[1748637485579,0.77754,2571.8,2571.7,0.77751]
[1748637487981,2.76791,2571.9,2571.8,0.77751]
[1748637489878,0.65093669,2572.1,2572.0,0.77745]
[1748637490090,0.00583669,2572.1,2572.0,0.77745]
[1748637490686,3.2078,2572.5,2572.4,0.77733]
[1748637491376,0.7772,2572.9,2572.4,1.94332]
[1748637491576,3.36757,2573.0,2572.9,0.77717]
[1748637492982,0.77719,2572.9,2572.8,0.77719]
[1748637493183,2.02099,2572.9,2572.8,0.77719]
[1748637496785,1.2438,2572.9,2572.8,0.77719]
[1748637497284,2.02098,2572.9,2572.8,0.77719]
[1748637497485,1.2438,2572.9,2572.8,0.77719]
[1748637497791,2.01726,2573.0,2572.9,0.77718]
[1748637497980,2.01724,2573.0,2572.9,0.77718]
[1748637498289,1.2401,2573.0,2572.9,0.77718]
[1748637500785,2.01724,2573.0,2572.9,0.77718]
[1748637503284,3.18301,2573.0,2572.5,3.8293]
[1748637503488,0.77727,2572.7,2572.6,0.77724]
[1748637504184,2.0337,2572.9,2572.8,0.77721]
[1748637504386,0.7772,2572.9,2572.8,0.77721]
[1748637507788,0.77724,2572.8,2572.7,0.77722]
[1748637507990,0.77724,2572.7,2572.6,2.01694]
[1748637510386,2.02793,2572.8,2572.7,0.77724]
[1748637511390,1.2507,2572.8,2572.7,0.77724]
[1748637511595,0.77718,2572.9,2572.8,0.77718]
[1748637516296,2.01727,2573.0,2572.9,0.77718]
[1748637519100,0.77714,2573.1,2573.0,0.77715]
[1748637520897,2.12124,2573.1,2573.0,0.77715]
[1748637521198,3.25513751,2573.1,2573.0,0.77715]
[1748637521392,1.13389751,2573.1,2573.0,0.77715]
[1748637521597,1.13389751,2573.1,2573.0,2.77415]
[1748637522295,0.00583669,2573.2,2573.1,0.77712]
[1748637522794,0.00583669,2573.2,2573.1,2.01892]
[1748637528809,0.00583669,2573.2,2573.1,5.22672]
[1748637530300,1.2825,2573.8,2573.7,0.77694]
[1748637531507,0.6117,2573.9,2573.8,0.77691]
[1748637531807,0.6117,2573.9,2573.7,2.11081]
[1748637532007,0.77694,2573.7,2573.6,1.39824]
[1748637532207,0.77694,2573.7,2573.6,4.56694]
[1748637532602,2.77984,2573.7,2573.6,4.56694]
[1748637534413,2.0029,2573.7,2573.6,4.56694]
[1748637535611,2.77984,2573.7,2573.6,4.56694]
[1748637541916,0.77712,2573.2,2573.1,3.79]
[1748637542210,0.77715,2573.1,2573.0,0.7771]
[1748637543411,0.77715,2573.1,2572.8,3.2078]
[1748637543614,0.77718,2573.0,2572.9,3.79]
[1748637543911,2.11028,2573.0,2572.9,3.79]
[1748637544912,2.11028,2573.0,2572.9,4.56718]
[1748637546416,0.77718,2573.0,2572.9,4.56718]
[1748637547514,0.77718,2573.0,2572.9,3.79]
[1748637547913,0.77718,2573.0,2572.9,4.56718]
[1748637550515,2.00574,2573.1,2573.0,0.77715]
[1748637550716,0.77714,2573.1,2573.0,0.77715]
[1748637551107,0.77711,2573.2,2573.1,0.77709]
[1748637551615,0.77693,2573.8,2573.7,0.77692]
[1748637551812,1.2963,2573.9,2573.5,1.94249]
[1748637552011,2.01542,2573.8,2573.7,0.77692]
[1748637552916,2.01544,2573.8,2573.7,0.77693]
[1748637554520,0.77696,2573.7,2573.6,0.77694]
[1748637554720,2.11666,2573.7,2573.6,0.77694]
[1748637559520,0.77691,2573.8,2573.7,0.7769]
[1748637560712,0.78268669,2574.0,2573.9,0.77687]
[1748637561523,0.78268669,2574.0,2573.9,1.38967]
[1748637562219,0.77677,2574.3,2574.1,0.77681]
[1748637562431,0.77675,2574.4,2574.3,0.77673]
[1748637563033,0.77675,2574.4,2574.3,1.39653]
[1748637563332,0.77675,2574.4,2574.3,0.6198]
[1748637564536,0.77675,2574.4,2574.3,1.39655]
[1748637565926,0.00385108,2574.6,2574.3,0.6198]
[1748637566135,0.00385108,2574.6,2574.5,0.77669]
[1748637566429,0.00385108,2574.6,2574.5,4.56469]
[1748637569033,0.00385108,2574.6,2574.5,7.77249]
[1748637569234,0.00385108,2574.6,2574.5,12.77249]
[1748637569433,0.77648,2575.3,2575.2,0.77648]
[1748637569639,3.98424,2575.4,2575.3,0.77645]
[1748637570038,0.77645,2575.3,2575.2,2.74976]
[1748637570743,0.77645,2575.3,2575.2,1.9733]
[1748637570935,0.77645,2575.3,2575.2,2.74978]
[1748637571138,3.98424,2575.4,2575.3,0.77645]
[1748637571335,3.98424,2575.4,2575.3,1.3298]
[1748637572530,3.98424,2575.4,2575.3,2.10625]
[1748637572731,3.98424,2575.4,2575.3,1.3298]
[1748637573252,3.98424,2575.4,2575.3,2.10625]
[1748637573640,3.98424,2575.4,2575.3,1.3298]
[1748637574040,0.77644,2575.4,2575.3,1.3298]
[1748637574340,0.77651,2575.1,2575.0,0.00582468]
[1748637576443,3.98431,2575.1,2575.0,4.68e-06]
[1748637581552,0.6286,2575.2,2575.0,4.68e-06]
[1748637581751,0.77651,2575.2,2575.0,4.68e-06]
[1748637581952,0.77651,2575.2,2575.1,0.77649]
[1748637582150,0.77651,2575.2,2575.1,1.99989]
[1748637582457,0.77651,2575.2,2575.1,5.79989]
[1748637582655,0.77651,2575.2,2575.1,5.0234]
[1748637583357,0.77651,2575.2,2575.1,5.79991]
[1748637589855,0.77651,2575.2,2575.1,5.79072611]
[1748637591662,0.84644857,2575.2,2575.1,4.57651]
[1748637597863,0.77651,2575.2,2575.1,4.57651]
[1748637598866,0.84644857,2575.2,2575.1,4.57651]
[1748637599870,0.77651,2575.2,2575.1,4.57651]
[1748637600264,0.00577996,2575.3,2575.2,0.77648]
[1748637600463,3.2078,2575.6,2575.5,0.77639]
[1748637600665,3.98416,2575.6,2575.5,4.57639]
[1748637601663,3.98416,2575.6,2575.5,3.8]
[1748637601870,0.77639,2575.5,2575.4,2.0092]
[1748637602059,0.77639,2575.5,2575.4,3.8]
[1748637602262,2.10719,2575.5,2575.4,4.57642]
[1748637603676,2.10719,2575.5,2575.4,0.77642]
[1748637603864,2.10719,2575.5,2575.4,4.57642]
[1748637604470,0.77639,2575.5,2575.4,4.57642]
[1748637604663,0.6758,2575.7,2575.5,0.77636]
[1748637604664,0.77638,2575.6,2575.5,0.77636]
[1748637604863,0.77638,2575.6,2575.5,2.06966]
[1748637605468,0.6758,2575.7,2575.6,0.77636]
[1748637605672,1.45213,2575.7,2575.6,0.77636]
[1748637605970,0.6758,2575.7,2575.6,0.77636]
[1748637606270,1.45213,2575.7,2575.6,0.77636]
[1748637606466,0.6758,2575.7,2575.6,0.77636]
[1748637606969,2.72991,2575.8,2575.7,0.77633]
[1748637607967,3.2078,2575.9,2575.7,0.77633]
[1748637608268,0.77631,2575.8,2575.7,0.77632]
[1748637608667,0.7763,2575.8,2575.7,0.77632]
[1748637609168,0.7763,2575.8,2575.6,0.676]
[1748637609771,2.017,2576.0,2575.7,0.77633]
[1748637609966,0.7763,2575.8,2575.6,1.45234]
[1748637610167,1.3414,2575.9,2575.7,0.77632]
[1748637610363,0.77631,2575.8,2575.6,2.75514]
[1748637610764,0.77633,2575.7,2575.6,2.75514]
[1748637610960,0.77633,2575.7,2575.6,0.676]
[1748637611168,0.77633,2575.7,2575.6,1.45236]
[1748637611359,2.67711548,2576.2,2575.6,5.676]
[1748637611567,2.5003,2576.7,2576.1,1.9405]
[1748637611761,1.2205,2576.6,2576.2,0.6653]
[1748637611966,1.2205,2576.6,2576.2,3.785]
[1748637612272,0.77594,2577.1,2576.8,0.776]
[1748637612469,0.77592,2577.1,2576.8,0.77598]
[1748637612767,1.99642,2577.1,2576.7,3.785]
[1748637612965,1.2205,2577.1,2576.6,3.2078]
[1748637613167,0.77612,2576.4,2576.2,4.56117]
[1748637613371,0.77612,2576.4,2576.2,4.56118]
[1748637613671,0.7761,2576.5,2576.3,0.77614]
[1748637613869,0.77609,2576.5,2576.3,1.44144]
[1748637614059,2.5527,2576.6,2576.3,2.70603]
[1748637614268,2.5527,2576.6,2576.5,0.77609]
[1748637614467,0.77605,2576.7,2576.4,0.7761]
[1748637614772,0.77605,2576.7,2576.4,2.0806]
[1748637615071,0.77604,2576.7,2576.5,0.77607]
[1748637615266,0.77603,2576.7,2576.6,3.785]
[1748637617164,0.6562,2576.8,2576.6,3.785]
[1748637617364,0.6562,2576.8,2576.6,4.56104]
[1748637617561,1.4322,2576.8,2576.7,0.6153]
[1748637617872,0.77603,2576.7,2576.6,3.785]
[1748637618071,2.06753,2576.7,2576.6,3.785]
[1748637619877,0.77603,2576.7,2576.6,3.785]
[1748637620268,0.84596857,2576.7,2576.6,3.785]
[1748637620668,2.09546857,2576.7,2576.6,3.785]
[1748637620977,3.25953857,2576.7,2576.4,3.2078]
[1748637621177,0.77609,2576.5,2576.4,3.2078]
[1748637621372,0.77609,2576.5,2576.4,6.9918]
[1748637623074,0.77609,2576.5,2576.4,7.76792]
[1748637623273,0.77609,2576.5,2576.4,6.9918]
[1748637623579,0.77609,2576.5,2576.4,3.784]
[1748637623779,0.77618,2576.2,2576.1,0.00582468]
[1748637623981,3.98398,2576.2,2576.1,0.00582468]
[1748637624382,0.77618,2576.2,2576.1,0.00582468]
[1748637625176,3.98398,2576.2,2576.1,0.00582468]
[1748637635404,4.05391857,2576.2,2576.1,0.00582468]
[1748637641413,3.27773857,2576.2,2576.1,0.00582468]
[1748637641608,3.27773857,2576.2,2576.1,0.78203468]
[1748637642006,4.05391857,2576.2,2576.1,3.80482468]
[1748637642206,4.05391857,2576.2,2576.1,4.58103468]
[1748637642207,3.27773857,2576.2,2576.1,4.58103468]
[1748637642407,3.27773857,2576.2,2576.1,5.87733468]
[1748637643310,0.84611857,2576.2,2576.1,5.10112468]
[1748637643816,0.84611857,2576.2,2576.1,5.87733468]
[1748637644717,0.84611857,2576.2,2576.1,5.10112468]
[1748637645017,0.06993857,2576.2,2576.1,5.87733468]
[1748637645916,0.84611857,2576.2,2576.1,5.10112468]
[1748637646710,0.06993857,2576.2,2576.1,5.10112468]
[1748637646917,0.06993857,2576.2,2576.1,5.87733468]
[1748637647819,0.84611857,2576.2,2576.1,5.10112468]
[1748637648018,0.84611857,2576.2,2576.1,1.30212468]
[1748637648220,0.84611857,2576.2,2576.1,5.10112468]
[1748637648816,3.2078,2576.9,2576.5,1.94019]
[1748637649023,0.77603,2576.7,2576.6,2.61744]
[1748637649514,0.77603,2576.7,2576.6,1.8414]
[1748637650220,0.77603,2576.7,2576.6,0.6162]
[1748637653022,0.77603,2576.7,2576.6,1.849]
[1748637653626,1.42373,2576.7,2576.6,0.6162]
[1748637654527,1.2418,2576.8,2576.6,0.6162]
[1748637654528,3.2078,2576.9,2576.6,0.6162]
[1748637654727,3.98377,2576.9,2576.7,0.77601]
[1748637655030,3.98377,2576.9,2576.8,1.2994]
[1748637655230,3.98377,2576.9,2576.8,2.0754]
[1748637655732,0.77597,2576.9,2576.8,2.0754]
[1748637657029,0.77603,2576.7,2576.6,0.6162]
[1748637657334,0.77603,2576.7,2576.6,4.4142]
[1748637658219,0.77602,2576.8,2576.7,0.77603]
[1748637658619,0.77602,2576.8,2576.6,5.19024]
[1748637659026,0.77603,2576.7,2576.6,5.19024]
[1748637659226,0.77602,2576.8,2576.6,4.4142]
[1748637659430,1.9864,2576.9,2576.7,0.77602]
[1748637659632,0.77601,2576.8,2576.7,0.77602]
[1748637659828,0.77601,2576.8,2576.6,4.4142]
[1748637659829,0.77599,2576.9,2576.8,0.77599]
[1748637660132,0.77599,2576.9,2576.8,0.776]
[1748637660329,5.97006,2577.3,2577.2,0.77588]
[1748637660629,3.8801,2577.3,2577.2,0.77588]
[1748637660829,3.98365,2577.3,2577.1,4.57389]
[1748637661133,3.98365,2577.3,2577.2,1.3457]
[1748637662631,0.77588,2577.2,2577.1,3.798]
[1748637662832,0.77588,2577.2,2577.1,4.57391]
[1748637663634,0.77588,2577.2,2577.1,5.0517]
[1748637663938,0.6602,2577.5,2577.4,0.77582]
[1748637664235,0.77579,2577.5,2577.3,0.77584]
[1748637664436,0.77579,2577.5,2577.4,1.2537]
[1748637664730,0.77579,2577.5,2577.4,1.8932]
[1748637664935,3.2078,2577.6,2577.4,1.8932]
[1748637665237,0.77579,2577.5,2577.4,1.8932]
[1748637668833,3.98349,2577.9,2577.7,0.77572]
[1748637669031,0.77569,2577.9,2577.8,1.9523]
[1748637670535,0.77569,2577.9,2577.8,0.627]
[1748637671530,3.2078,2578.2,2577.8,0.627]
[1748637671729,3.2078,2578.2,2578.0,0.77563]
[1748637671935,3.2078,2578.2,2578.1,5.0597]
[1748637672129,3.2078,2578.2,2578.1,5.83532]
[1748637672329,3.2078,2578.2,2578.1,5.0597]
[1748637672735,0.77559,2578.2,2578.1,5.0597]
[1748637673138,1.3375,2578.4,2578.2,0.77559]
[1748637673434,2.11305,2578.4,2578.2,2.68858]
[1748637674335,2.11305,2578.4,2578.3,0.77556]
[1748637674532,1.3375,2578.4,2578.2,1.913]
[1748637674737,1.3375,2578.4,2578.3,0.77556]
[1748637675033,2.11303,2578.4,2578.2,1.913]
[1748637675336,1.3375,2578.4,2578.3,0.77556]
[1748637675525,2.11303,2578.4,2578.3,0.77556]
[1748637675832,1.3375,2578.4,2578.3,0.77556]
[1748637676834,0.7755,2578.5,2578.4,0.77553]
[1748637677035,3.2078,2578.6,2578.4,0.77551]
[1748637677235,0.7755,2578.5,2578.4,0.77551]
[1748637677638,3.98327,2578.6,2578.5,0.7755]
[1748637677939,3.2078,2578.6,2578.5,4.5615]
[1748637678940,3.2078,2578.6,2578.5,5.1726]
[1748637679243,0.77542,2578.9,2578.8,0.7754]
[1748637680538,0.77541,2578.8,2578.7,2.01912]
[1748637684341,5.8072,2579.0,2578.7,2.01912]
[1748637684342,0.7754,2578.9,2578.8,0.77539]
[1748637686042,0.77561,2578.2,2578.1,0.77561]
[1748637686333,0.77562,2578.1,2578.0,3.785]
[1748637686538,0.77561,2578.2,2578.1,0.77562]
[1748637688238,0.77562,2578.1,2578.0,3.785]
[1748637688438,2.09992,2578.1,2578.0,3.785]
[1748637688738,1.3243,2578.1,2578.0,4.56065]
[1748637688938,0.06993857,2578.6,2578.5,0.7755]
[1748637689144,0.06993857,2578.6,2578.5,7.7683]
[1748637695840,0.77534,2579.1,2579.0,0.77533]
[1748637696040,0.77534,2579.1,2579.0,4.55933]
[1748637696339,0.77534,2579.1,2579.0,3.784]
[1748637697146,0.77534,2579.1,2579.0,4.55935]
[1748637697335,0.77534,2579.1,2579.0,3.784]
[1748637698147,0.77534,2579.1,2579.0,4.55935]
[1748637699746,0.77534,2579.1,2579.0,3.784]
[1748637700343,4.5337,2579.2,2579.1,0.77532]
[1748637700547,1.40267,2579.3,2579.2,0.77529]
[1748637700847,1.40269,2579.3,2579.2,0.77529]
[1748637701147,0.6274,2579.3,2579.1,0.6569]
[1748637701446,3.2078,2580.1,2580.0,0.77505]
[1748637701746,2.69024,2580.4,2580.0,3.2078]
[1748637702047,0.77499,2580.2,2580.1,3.827]
[1748637703344,0.77499,2580.2,2580.1,4.60202]
[1748637703949,0.6622,2580.3,2580.2,0.77499]
[1748637705050,2.69025,2580.4,2580.3,0.77496]
[1748637705439,0.6622,2580.6,2580.3,0.77496]
[1748637705440,0.7749,2580.5,2580.4,0.7749]
[1748637705645,0.7749,2580.5,2580.4,4.6019]
[1748637705846,0.6622,2580.6,2580.4,3.827]
[1748637706045,0.7749,2580.5,2580.4,4.60192]
[1748637707253,0.77483,2580.8,2580.4,3.827]
[1748637707447,0.77481,2580.8,2580.4,7.06247]
[1748637707752,0.77482,2580.8,2580.7,0.77482]
[1748637708154,0.77487,2580.7,2580.6,0.77487]
[1748637708353,0.77488,2580.6,2580.5,0.77488]
[1748637709251,2.05446,2580.7,2580.4,5.1252]
[1748637709552,0.77488,2580.6,2580.5,0.77488]
[1748637709957,0.7749,2580.5,2580.4,4.60192]
[1748637710144,2.0477,2580.5,2580.4,4.60192]
[1748637710662,0.77502,2580.1,2580.0,3.2078]
[1748637710850,0.77502,2580.1,2580.0,7.0338]
[1748637711051,0.77502,2580.1,2580.0,0.77505]
[1748637711250,1.944,2580.2,2580.0,3.826]
[1748637711458,0.77502,2580.1,2580.0,3.826]
[1748637711657,2.04782,2580.1,2580.0,3.826]
[1748637711856,2.69182,2580.1,2580.0,4.60105]
[1748637712157,0.77505,2580.0,2579.9,0.78087305]
[1748637712358,2.10835,2580.0,2579.9,3.83081305]
[1748637712961,2.10835,2580.0,2579.9,0.00581305]
[1748637713156,2.10835,2580.0,2579.9,3.83081305]
[1748637713356,2.10835,2580.0,2579.9,0.00581305]
[1748637713855,2.10835,2580.0,2579.9,3.83081305]
[1748637714057,2.10835,2580.0,2579.9,0.00581305]
[1748637715052,5.31615,2580.0,2579.9,0.00581305]
[1748637719356,4.5411,2580.0,2579.9,0.78089305]
[1748637719660,0.644,2580.1,2580.0,0.77505]
[1748637720153,0.6712,2580.2,2580.1,0.77502]
[1748637720357,0.6712,2580.2,2580.1,4.60102]
[1748637720558,1.44619,2580.2,2580.1,4.60102]
[1748637721661,1.44619,2580.2,2580.1,3.826]
[1748637722859,0.77505,2580.0,2579.9,0.00581305]
[1748637723160,0.77505,2580.0,2579.9,3.83081305]
[1748637723758,0.77505,2580.0,2579.9,4.60589305]
[1748637724164,0.77504,2580.1,2580.0,0.77503]
[1748637724367,0.77505,2580.0,2579.9,4.60587305]
[1748637724558,0.77505,2580.0,2579.9,5.88317305]
[1748637725157,0.77505,2580.0,2579.9,5.10811305]
[1748637725360,0.77505,2580.0,2579.9,5.88319305]
[1748637725568,0.84498857,2580.0,2579.9,5.88319305]
[1748637726062,0.84498857,2580.0,2579.9,5.10811305]
[1748637727468,0.84498857,2580.0,2579.9,3.83081305]
[1748637729966,0.84498857,2580.0,2579.9,4.60589305]
[1748637731463,3.2078,2580.4,2580.3,0.77496]
[1748637731669,0.77479,2580.9,2580.7,0.77484]
[1748637731859,3.98257,2581.0,2580.7,3.815]
[1748637732064,3.2078,2581.0,2580.9,0.77478]
[1748637733364,3.2078,2581.0,2580.8,0.77479]
[1748637733564,3.2078,2581.0,2580.5,0.6445]
[1748637733766,4.55106,2580.9,2580.6,3.814]
[1748637733964,4.55106,2580.9,2580.5,0.6445]
[1748637733965,0.77487,2580.6,2580.5,0.6445]
[1748637734163,0.77487,2580.6,2580.5,4.4585]
[1748637734360,0.77487,2580.6,2580.5,5.2334]
[1748637734665,0.77486,2580.7,2580.6,0.77487]
[1748637734867,0.77487,2580.7,2580.5,5.23338]
[1748637735171,4.55106,2580.9,2580.5,5.23338]
[1748637735172,0.77487,2580.6,2580.5,5.2334]
[1748637736074,0.77486,2580.7,2580.6,0.77487]
[1748637737568,2.6141,2580.9,2580.5,4.4585]
[1748637737774,0.77486,2580.7,2580.6,0.77486]
[1748637738871,0.77487,2580.6,2580.5,5.23338]
[1748637739972,0.84479857,2580.7,2580.6,0.77487]
[1748637742376,0.84479857,2580.7,2580.6,2.09247]
[1748637743674,0.84479857,2580.7,2580.6,2.07932232]
[1748637746873,0.06993857,2580.7,2580.6,2.07932232]
[1748637747080,0.06993857,2580.7,2580.6,2.73702232]
[1748637748677,0.06993857,2580.7,2580.6,3.05096083]
[1748637748875,0.06993857,2580.7,2580.6,2.73702232]
[1748637749478,3.98248,2581.3,2581.2,0.77469]
[1748637749977,0.77468,2581.3,2581.2,0.77469]
[1748637750476,0.77462,2581.5,2581.4,0.77461]
[1748637751181,0.77462,2581.5,2581.4,1.2472]
[1748637751580,0.77462,2581.5,2581.4,2.02183]
[1748637751980,0.77462,2581.5,2581.4,1.2472]
[1748637752181,0.77462,2581.5,2581.4,2.02183]
[1748637752371,0.77462,2581.5,2581.4,1.2472]
[1748637753084,0.77462,2581.5,2581.4,2.02183]
[1748637753583,5.22169,2581.6,2581.5,0.7746]
[1748637753782,3.98239,2581.6,2581.5,3.814]
[1748637754083,0.77463,2581.4,2581.3,0.6453]
[1748637754278,0.77463,2581.4,2581.2,0.65411305]
[1748637754279,0.77466,2581.3,2581.2,0.00581305]
[1748637754584,5.94186,2581.3,2581.2,0.00581305]
[1748637754778,2.73406,2581.3,2581.2,0.00581305]
[1748637761286,0.77466,2581.3,2581.2,0.00581305]
[1748637761484,3.98242,2581.5,2581.4,0.77463]
[1748637762787,0.77462,2581.5,2581.4,0.77463]
[1748637764594,0.77443,2582.1,2582.0,0.77444]
[1748637764892,1.93586,2582.4,2581.6,5.14422]
[1748637765086,0.77448,2581.9,2581.8,0.6211]
[1748637765281,0.77447,2582.0,2581.8,0.6211]
[1748637765486,0.77447,2582.0,2581.9,0.77448]